bitfinex/quotes_ETHUSD_20251119
["timestamp","ask_amount","ask_price","bid_price","bid_amount"]
[1763510591236,0.69120128,3116.6,3116.4,0.3445]
[1763510591463,0.69120128,3116.5,3116.4,0.3445]
[1763510591775,0.50372772,3116.7,3116.4,0.3445]
[1763510592006,0.69120128,3116.6,3116.4,0.689]
[1763510592274,0.69120128,3116.5,3116.3,0.1732]
[1763510592474,0.69120128,3116.4,3116.3,0.1732]
[1763510592829,0.69120128,3116.4,3116.3,0.5177]
[1763510593035,0.69120128,3116.8,3116.3,0.8622]
[1763510593235,0.69120128,3116.7,3116.3,0.5177]
[1763510593536,0.69120128,3116.6,3116.3,0.5177]
[1763510593762,0.69120128,3116.5,3116.3,0.5177]
[1763510593930,0.69120128,3116.4,3116.3,0.5177]
[1763510594134,0.69120128,3116.7,3116.3,0.5177]
[1763510594468,0.69120128,3116.6,3116.3,0.5177]
[1763510594662,0.69120128,3116.5,3116.3,0.5177]
[1763510594867,0.69120128,3116.7,3116.3,0.5177]
[1763510595068,0.69120128,3116.6,3116.4,0.3445]
[1763510595273,0.69120128,3116.5,3116.4,0.3445]
[1763510595569,1.19493447,3116.7,3116.3,0.1732]
[1763510595765,0.69120128,3116.6,3116.3,0.001]
[1763510596069,0.4991,3116.4,3116.3,0.001]
[1763510596250,1.35524141,3116.4,3116.3,0.001]
[1763510596770,0.85614141,3116.4,3116.3,0.001]
[1763510597073,0.69120128,3116.4,3116.3,0.001]
[1763510597269,0.69120128,3116.6,3116.3,0.3455]
[1763510597469,1.41072583,3116.7,3116.3,0.001]
[1763510597470,0.69120128,3116.5,3116.3,0.001]
[1763510597670,0.69120128,3116.4,3116.3,0.001]
[1763510597844,0.69120128,3116.6,3116.3,0.001]
[1763510598044,0.4991,3116.4,3116.3,0.001]
[1763510598239,1.59580528,3116.4,3116.3,0.001]
[1763510598538,2.05490528,3116.4,3116.3,0.001]
[1763510598742,4.53902128,3116.4,3116.3,0.001]
[1763510599275,5.99026548,3116.4,3116.3,0.001]
[1763510599570,10.90583428,3116.4,3116.3,0.001]
[1763510599772,6.60261428,3116.4,3116.3,0.001]
[1763510600072,5.86401428,3116.4,3116.3,0.001]
[1763510600271,7.01429682,3116.4,3116.3,0.001]
[1763510600569,7.84626282,3116.4,3116.3,0.001]
[1763510600872,7.84626282,3116.4,3116.3,0.3455]
[1763510600873,1.77918328,3116.4,3116.3,0.3455]
[1763510601172,0.18416273,3116.8,3116.3,0.3455]
[1763510601173,1.15028254,3117.3,3116.3,0.69]
[1763510601359,0.9895766,3117.2,3116.4,0.3445]
[1763510601561,0.30145991,3117.1,3117.0,0.3445]
[1763510601876,0.002,3117.1,3117.0,0.3445]
[1763510602041,0.002,3117.1,3116.3,0.001]
[1763510602042,0.30145991,3117.1,3116.3,0.001]
[1763510602245,0.002,3117.1,3116.3,0.001]
[1763510602546,0.29945991,3117.0,3116.3,0.001]
[1763510602765,0.29945991,3116.9,3116.3,0.001]
[1763510603581,0.29945991,3117.0,3116.8,0.3445]
[1763510603737,0.30145991,3117.1,3117.0,0.3445]
[1763510603935,0.002,3117.1,3117.0,0.689]
[1763510605073,0.50558142,3117.1,3117.0,0.689]
[1763510606265,0.50558142,3117.1,3117.0,0.3445]
[1763510606437,0.50558142,3117.1,3117.0,0.689]
[1763510607570,0.50558142,3117.1,3116.5,0.3445]
[1763510608155,0.50558142,3117.1,3117.0,0.3445]
[1763510608375,0.50558142,3117.1,3116.5,0.3445]
[1763510613306,0.50558142,3117.1,3117.0,0.3445]
[1763510613780,0.50558142,3117.1,3117.0,0.689]
[1763510615300,0.002,3117.1,3117.0,0.689]
[1763510618626,0.50556221,3117.1,3117.0,0.689]
[1763510622276,0.50556221,3117.1,3116.3,0.001]
[1763510622624,0.50556221,3117.1,3116.3,0.3455]
[1763510623227,0.50556221,3117.1,3117.0,0.3445]
[1763510623866,0.50556221,3117.1,3117.0,0.689]
[1763510624063,0.50556221,3117.1,3117.0,0.69]
[1763510624922,0.002,3117.1,3117.0,0.69]
[1763510629874,0.002,3117.1,3117.0,0.3455]
[1763510630078,0.002,3117.1,3117.0,0.001]
[1763510630282,0.002,3117.1,3117.0,0.3455]
[1763510630891,0.002,3117.1,3117.0,0.001]
[1763510631060,0.9588,3117.1,3117.0,0.001]
[1763510631688,1.25842553,3117.1,3117.0,0.001]
[1763510633469,0.30162553,3117.1,3117.0,0.001]
[1763510633681,0.30202375,3117.1,3117.0,0.001]
[1763510634192,1.25882375,3117.1,3117.0,0.001]
[1763510634975,2.4536475,3117.1,3117.0,0.001]
[1763510635188,2.00783602,3117.1,3117.0,0.001]
[1763510636678,1.52873602,3117.1,3117.0,0.001]
[1763510637404,2.00783602,3117.1,3117.0,0.001]
[1763510637604,2.00783602,3117.1,3116.6,0.001]
[1763510637605,1.31249664,3117.0,3116.6,0.001]
[1763510637807,0.4777,3116.7,3116.6,0.001]
[1763510637970,1.64112631,3116.7,3116.6,0.001]
[1763510638167,2.16381639,3116.7,3116.6,0.001]
[1763510638368,2.85469659,3116.7,3116.6,0.001]
[1763510640096,7.09192095,3116.7,3116.6,0.001]
[1763510640410,3.86203,3116.6,3116.3,0.001]
[1763510640575,0.4777,3116.4,3116.3,0.001]
[1763510640777,1.46860395,3116.4,3116.3,0.001]
[1763510641107,1.94770395,3116.4,3116.3,0.001]
[1763510641293,7.97580395,3116.4,3116.3,0.001]
[1763510641604,9.05653902,3116.4,3116.3,0.001]
[1763510641790,5.89462402,3116.4,3116.3,0.001]
[1763510641998,5.37362402,3116.4,3116.3,0.001]
[1763510642201,2.83153902,3116.4,3116.3,0.001]
[1763510642507,0.4791,3116.8,3116.3,0.001]
[1763510642708,0.50564752,3117.1,3116.3,0.3465]
[1763510642872,0.50564752,3117.1,3116.3,0.692]
[1763510643072,0.002,3117.1,3116.3,0.692]
[1763510643295,0.002,3117.1,3117.0,0.3455]
[1763510643517,0.002,3117.1,3116.4,0.3455]
[1763510644009,0.002,3117.1,3117.0,0.3455]
[1763510644582,0.002,3117.1,3116.3,0.406504]
[1763510644784,0.002,3117.1,3116.3,0.752004]
[1763510644985,0.002,3117.1,3117.0,0.3455]
[1763510646815,0.002,3117.1,3117.0,0.691]
[1763510647015,0.002,3117.1,3116.6,0.3455]
[1763510647189,0.002,3117.1,3116.3,0.001]
[1763510647523,0.002,3117.1,3116.3,0.3465]
[1763510648202,0.002,3117.1,3117.0,0.3455]
[1763510648579,0.002,3117.1,3117.0,0.691]
[1763510648982,0.002,3117.1,3117.0,1.096504]
[1763510649922,0.002,3117.1,3117.0,0.691]
[1763510650480,0.002,3117.1,3117.0,1.096504]
[1763510651099,0.002,3117.1,3117.0,0.3455]
[1763510651333,0.002,3117.1,3117.0,0.691]
[1763510651698,0.002,3117.1,3117.0,1.096504]
[1763510652596,0.002,3117.1,3117.0,0.3455]
[1763510653835,0.002,3117.1,3116.3,0.001]
[1763510654035,0.9255,3117.1,3116.3,0.001]
[1763510654251,0.002,3117.1,3116.3,0.3465]
[1763510654736,0.4747,3117.1,3116.3,0.001]
[1763510655732,0.4508,3116.4,3116.3,0.001]
[1763510656031,0.4747,3117.1,3116.3,0.001]
[1763510656328,0.4727,3117.0,3116.3,0.001]
[1763510661525,0.4508,3116.4,3116.3,0.001]
[1763510661730,0.4727,3117.0,3116.3,0.001]
[1763510662036,0.4737,3116.9,3116.3,0.001]
[1763510668843,0.002,3117.1,3116.3,0.001]
[1763510669214,0.4757,3117.1,3116.3,0.001]
[1763510672520,0.002,3117.1,3116.3,0.001]
[1763510672718,0.002,3117.1,3116.3,0.3465]
[1763510673746,0.4757,3117.1,3116.3,0.3465]
[1763510673927,0.4757,3117.1,3116.3,0.001]
[1763510675234,0.4951,3116.4,3116.3,0.001]
[1763510675661,0.9688,3116.4,3116.3,0.001]
[1763510677756,0.4623,3116.4,3116.3,0.001]
[1763510677962,0.9613,3116.4,3116.3,0.001]
[1763510679857,1.26085569,3116.4,3116.3,0.001]
[1763510680261,1.951064,3116.4,3116.3,0.001]
[1763510680869,2.23686966,3116.4,3116.3,0.001]
[1763510682670,1.15028254,3116.9,3116.3,0.3465]
[1763510682671,0.86254675,3116.9,3116.3,0.3465]
[1763510682877,0.29983202,3116.8,3116.5,0.3455]
[1763510683186,0.2998568,3116.9,3116.3,0.001]
[1763510684288,0.2998568,3117.0,3116.3,0.001]
[1763510684467,0.2998568,3116.9,3116.3,0.001]
[1763510684662,0.2998568,3117.0,3116.3,0.001]
[1763510684879,0.2998568,3116.9,3116.3,0.001]
[1763510685083,0.002,3117.1,3116.3,0.001]
[1763510685692,0.501,3117.1,3116.3,0.001]
[1763510686269,0.002,3117.1,3116.3,0.3465]
[1763510687500,0.002,3117.1,3116.3,0.001]
[1763510687699,0.501,3117.1,3116.3,0.001]
[1763510688293,0.002,3117.1,3116.4,0.3455]
[1763510690095,0.002,3117.1,3116.3,0.001]
[1763510690403,0.501,3117.1,3116.3,0.001]
[1763510690603,0.80104594,3117.1,3116.3,0.001]
[1763510690768,0.30004594,3117.0,3116.3,0.001]
[1763510691100,0.002,3117.1,3116.3,0.001]
[1763510691268,0.501,3117.1,3116.3,0.001]
[1763510691471,0.80104594,3117.1,3116.3,0.001]
[1763510691670,0.501,3117.1,3116.3,0.001]
[1763510692002,0.499,3117.0,3116.3,0.001]
[1763510692500,0.30199312,3117.1,3116.3,0.001]
[1763510692699,0.002,3117.1,3116.3,0.001]
[1763510693012,0.002,3117.1,3116.4,0.3455]
[1763510693513,0.002,3117.1,3116.3,0.001]
[1763510693863,0.002,3117.1,3116.3,0.3465]
[1763510694100,0.30199312,3117.1,3116.3,0.3465]
[1763510694412,0.002,3117.1,3116.3,0.3465]
[1763510695680,0.002,3117.1,3117.0,0.3455]
[1763510697769,0.002,3117.1,3116.6,0.3455]
[1763510699975,0.002,3117.1,3117.0,0.3455]
[1763510703225,0.9633,3117.1,3116.3,0.001]
[1763510703510,0.9633,3117.1,3116.3,0.406504]
[1763510703731,0.4643,3117.1,3116.3,0.001]
[1763510704020,0.499,3117.0,3116.3,0.001]
[1763510704186,0.79868723,3117.0,3116.3,0.001]
[1763510704382,1.48943301,3117.0,3116.3,0.001]
[1763510704596,0.79868723,3116.9,3116.3,0.001]
[1763510704794,0.29968723,3116.8,3116.3,0.001]
[1763510704991,0.79868723,3116.8,3116.3,0.001]
[1763510705212,0.499,3116.8,3116.3,0.001]
[1763510705413,0.499,3116.7,3116.3,0.001]
[1763510706688,0.4817,3116.4,3116.3,0.001]
[1763510707338,0.9583,3116.4,3116.3,0.001]
[1763510708101,1.25784645,3116.4,3116.3,0.001]
[1763510708584,1.66335045,3116.4,3116.3,0.001]
[1763510708791,4.37569861,3116.4,3116.3,0.001]
[1763510709285,3.51315186,3116.4,3116.3,0.001]
[1763510710227,13.80082583,3116.4,3116.3,0.001]
[1763510710389,5.82435186,3116.4,3116.3,0.001]
[1763510710590,3.10764786,3116.4,3116.3,0.001]
[1763510710814,10.70187759,3116.4,3116.3,0.001]
[1763510711029,10.14807759,3116.4,3116.3,0.001]
[1763510711340,6.37007459,3116.4,3116.3,0.001]
[1763510711636,3.10764786,3116.4,3116.3,0.001]
[1763510712764,7.94882286,3116.4,3116.3,0.001]
[1763510713041,7.51204686,3116.4,3116.3,0.001]
[1763510714143,11.29070686,3116.4,3116.3,0.001]
[1763510714440,8.18184586,3116.4,3116.3,0.001]
[1763510714770,9.04379359,3116.4,3116.3,0.001]
[1763510714944,9.3321284,3116.4,3116.3,0.001]
[1763510715242,17.86753983,3116.4,3116.3,0.001]
[1763510715444,1.79419664,3116.3,3115.8,0.001]
[1763510715646,0.4817,3116.1,3115.8,0.001]
[1763510715943,14.48762606,3116.1,3115.8,0.001]
[1763510716158,0.4817,3115.9,3115.6,0.001]
[1763510716313,0.887204,3115.7,3115.6,0.001]
[1763510716508,19.10632865,3115.7,3115.6,0.001]
[1763510716836,19.58292865,3115.7,3115.6,0.001]
[1763510717408,20.96516265,3115.7,3115.6,0.001]
[1763510717607,17.88743165,3115.7,3115.6,0.001]
[1763510717853,14.26760065,3115.7,3115.6,0.001]
[1763510718147,8.83699065,3115.7,3115.6,0.001]
[1763510718348,2.16483909,3115.7,3115.6,0.001]
[1763510718550,1.86529264,3115.7,3115.6,0.001]
[1763510719460,2.16333762,3115.7,3115.6,0.001]
[1763510719652,1.86529264,3115.7,3115.6,0.001]
[1763510719857,2.16332775,3115.7,3115.6,0.001]
[1763510720057,2.39795053,3115.7,3115.6,0.001]
[1763510720560,5.20679453,3115.7,3115.6,0.001]
[1763510720860,6.32069453,3115.7,3115.6,0.001]
[1763510721016,12.52601353,3115.7,3115.6,0.001]
[1763510721216,3.08427176,3115.7,3115.6,0.001]
[1763510721450,8.35406276,3115.7,3115.6,0.001]
[1763510721631,6.34753676,3115.7,3115.6,0.001]
[1763510722216,3.08427176,3115.7,3115.6,0.001]
[1763510722455,2.39795053,3115.7,3115.6,0.001]
[1763510723160,3.08402891,3115.7,3115.6,0.001]
[1763510723518,8.51966791,3115.7,3115.6,0.001]
[1763510723725,6.32540991,3115.7,3115.6,0.001]
[1763510724053,2.39795053,3115.7,3115.6,0.001]
[1763510727566,3.08406902,3115.7,3115.6,0.001]
[1763510727965,3.08383618,3115.7,3115.6,0.001]
[1763510728373,3.08383618,3115.7,3115.2,0.001]
[1763510728374,3.23849664,3115.6,3115.2,0.001]
[1763510728535,3.23849664,3115.2,3114.9,0.001]
[1763510728734,1.31089707,3115.3,3114.9,0.001]
[1763510728735,0.858704,3115.0,3114.9,0.001]
[1763510729030,12.57426878,3115.0,3114.9,0.001]
[1763510729230,3.23849664,3114.9,3112.0,0.1722]
[1763510729461,0.405504,3114.6,3112.1,0.3495]
[1763510729657,0.90699264,3114.4,3112.3,0.3485]
[1763510729831,0.93574823,3114.3,3112.1,0.3495]
[1763510730036,0.29780227,3114.2,3112.1,0.3495]
[1763510730247,0.29780227,3114.3,3112.1,0.3495]
[1763510730452,0.74920227,3114.3,3112.1,0.3495]
[1763510730649,0.29780227,3114.2,3112.1,0.3495]
[1763510730934,0.4514,3114.2,3112.1,0.3495]
[1763510731135,1.4353499,3114.2,3112.0,0.1722]
[1763510731335,0.405504,3113.9,3112.2,0.3495]
[1763510731542,0.405504,3113.6,3112.2,0.3495]
[1763510731766,0.405504,3113.6,3112.0,0.1722]
[1763510731767,0.405504,3113.4,3112.0,0.1722]
[1763510731968,0.90699264,3113.2,3112.0,0.1722]
[1763510732174,0.405504,3113.4,3111.7,0.1722]
[1763510732381,0.85769707,3113.0,3111.7,0.1722]
[1763510732533,0.2975113,3112.9,3111.8,0.3495]
[1763510732734,0.4514,3112.9,3111.8,0.3495]
[1763510733532,0.2975113,3112.9,3111.8,0.3495]
[1763510733737,0.2975113,3113.2,3111.8,0.3495]
[1763510733937,0.4514,3113.3,3111.8,0.3495]
[1763510733938,0.98268079,3113.3,3111.8,0.3495]
[1763510734169,0.2975113,3113.2,3111.8,0.3495]
[1763510734374,0.2975113,3113.5,3111.9,0.405504]
[1763510734571,0.7489113,3113.6,3112.0,0.3495]
[1763510734872,0.1865,3113.8,3112.1,0.43763664]
[1763510735034,0.1865,3113.8,3112.3,0.405504]
[1763510735535,0.1865,3113.8,3112.4,0.3495]
[1763510735939,0.48385304,3113.8,3112.4,0.3495]
[1763510737380,0.4992,3113.7,3112.4,0.3495]
[1763510737589,0.79655304,3113.7,3112.4,0.3495]
[1763510737763,0.90699264,3113.5,3112.4,0.3495]
[1763510737944,1.4027909,3113.4,3112.4,0.3495]
[1763510738151,0.29728665,3113.3,3112.1,0.3495]
[1763510738377,0.4992,3113.3,3112.1,0.3495]
[1763510739285,0.90699264,3113.1,3111.8,0.3495]
[1763510739444,0.29728665,3113.0,3111.7,0.1722]
[1763510739643,0.29728665,3113.0,3110.7,0.65440313]
[1763510739644,2.06197636,3112.9,3111.4,0.1722]
[1763510739886,0.96473789,3112.8,3111.4,0.1722]
[1763510740069,0.29728665,3112.7,3111.4,0.1722]
[1763510740250,0.4992,3112.7,3111.4,0.1722]
[1763510740580,0.90699264,3112.5,3111.5,0.1722]
[1763510740756,0.60479051,3112.4,3111.5,0.1722]
[1763510740959,0.79648665,3112.4,3111.5,0.1722]
[1763510741157,0.29728665,3112.3,3111.5,0.1722]
[1763510741362,0.4992,3112.8,3111.6,0.3495]
[1763510741692,0.4992,3112.7,3111.6,0.3495]
[1763510741853,1.48008594,3112.7,3111.6,0.3495]
[1763510742048,0.98088594,3112.6,3111.6,0.3495]
[1763510742270,0.4992,3112.7,3111.6,0.3495]
[1763510742271,0.29678322,3112.5,3111.6,0.3495]
[1763510742470,0.29678322,3112.6,3111.6,0.3495]
[1763510742665,0.4992,3112.7,3111.6,0.3495]
[1763510743195,0.4992,3112.7,3111.5,0.1732]
[1763510743389,0.90699264,3112.5,3111.5,0.001]
[1763510743691,0.73510708,3112.4,3111.5,0.001]
[1763510743898,0.79598322,3112.4,3111.5,0.001]
[1763510744199,0.29678322,3112.3,3111.5,0.3505]
[1763510744359,0.98088594,3112.6,3111.5,0.3505]
[1763510744689,0.29678322,3112.5,3111.5,0.001]
[1763510744901,0.4992,3112.5,3111.5,0.001]
[1763510745100,3.25671164,3112.4,3111.5,0.001]
[1763510745282,1.3564771,3112.3,3111.5,0.001]
[1763510745477,0.29678322,3112.2,3111.5,0.001]
[1763510745799,0.6577,3111.6,3111.5,0.001]
[1763510746304,9.39932264,3111.6,3111.5,0.001]
[1763510746468,5.64017616,3111.6,3111.5,0.001]
[1763510746671,6.28996348,3111.6,3111.5,0.001]
[1763510747272,6.25596248,3111.6,3111.5,0.001]
[1763510747997,5.80956848,3111.6,3111.5,0.001]
[1763510748506,8.60054548,3111.6,3111.5,0.001]
[1763510749373,15.33219448,3111.6,3111.5,0.001]
[1763510749574,3.19401548,3111.6,3111.5,0.001]
[1763510750071,5.54278116,3111.6,3111.5,0.001]
[1763510750273,5.10973516,3111.6,3111.5,0.001]
[1763510750499,6.77847616,3111.6,3111.5,0.001]
[1763510750706,8.61793416,3111.6,3111.5,0.001]
[1763510751408,6.77603416,3111.6,3111.5,0.001]
[1763510751586,7.53940728,3111.6,3111.5,0.001]
[1763510752310,8.80260835,3111.6,3111.5,0.001]
[1763510752512,9.90233235,3111.6,3111.5,0.001]
[1763510752712,10.32892135,3111.6,3111.5,0.001]
[1763510752914,10.33200699,3111.6,3111.5,0.001]
[1763510753220,11.97982099,3111.6,3111.5,0.001]
[1763510753382,15.07331899,3111.6,3111.5,0.001]
[1763510753583,15.07364399,3111.6,3111.5,0.001]
[1763510753812,31.09762999,3111.6,3111.5,0.001]
[1763510754015,26.30202499,3111.6,3111.5,0.001]
[1763510754193,24.79446899,3111.6,3111.5,0.001]
[1763510754393,26.94705499,3111.6,3111.5,0.001]
[1763510754693,3.80633092,3111.6,3111.1,0.001]
[1763510755012,0.4765,3111.2,3111.1,0.001]
[1763510755228,6.26428023,3111.2,3111.1,0.001]
[1763510755384,2.3625578,3111.2,3111.1,0.001]
[1763510755580,1.8860578,3111.2,3111.1,0.001]
[1763510755823,0.97906516,3111.2,3111.1,0.001]
[1763510755995,0.29588759,3111.2,3111.1,0.001]
[1763510756202,0.29588759,3111.3,3111.1,0.001]
[1763510756390,0.32376366,3111.3,3111.1,0.001]
[1763510756584,0.61965125,3111.3,3111.1,0.001]
[1763510757216,0.29588759,3111.2,3111.1,0.001]
[1763510757610,1.45556516,3111.2,3111.1,0.001]
[1763510758192,9.88178398,3111.2,3111.1,0.001]
[1763510758517,10.90233874,3111.2,3111.1,0.001]
[1763510758724,10.46384874,3111.2,3111.1,0.001]
[1763510758908,6.39428474,3111.2,3111.1,0.001]
[1763510759108,2.97531992,3111.2,3111.1,0.001]
[1763510759306,4.70476516,3111.2,3111.1,0.001]
[1763510759625,2.8104659,3111.2,3111.1,0.001]
[1763510759824,2.3112659,3111.2,3111.1,0.001]
[1763510760432,1.45556516,3111.2,3111.1,0.001]
[1763510760634,1.83512256,3111.2,3111.1,0.001]
[1763510760792,2.60878533,3111.2,3111.1,0.001]
[1763510760992,2.25192793,3111.2,3111.1,0.001]
[1763510761390,1.75272793,3111.2,3111.1,0.001]
[1763510761590,0.97906516,3111.2,3111.1,0.8722]
[1763510761791,0.29588759,3111.2,3111.1,0.5227]
[1763510762337,0.29588759,3111.3,3111.1,0.8722]
[1763510762624,0.29588759,3111.5,3111.1,0.1732]
[1763510762804,0.29588759,3111.4,3111.1,0.1732]
[1763510763009,0.29588759,3111.6,3111.2,0.3495]
[1763510763240,0.29588759,3111.5,3111.2,0.3495]
[1763510763391,0.29588759,3111.4,3111.2,0.3495]
[1763510763596,0.29588759,3111.6,3111.2,0.3495]
[1763510763829,0.29588759,3111.5,3111.3,0.3495]
[1763510764012,0.29588759,3111.4,3111.2,0.3495]
[1763510764216,0.97906516,3111.7,3111.2,0.3495]
[1763510764416,0.29588759,3111.6,3111.2,0.3495]
[1763510764721,0.29588759,3111.5,3111.2,0.3495]
[1763510764927,0.29588759,3111.4,3111.2,0.3495]
[1763510765125,0.97906516,3111.7,3111.2,0.3495]
[1763510765423,0.97906516,3111.6,3111.1,0.1732]
[1763510765601,0.97906516,3111.5,3111.1,0.1732]
[1763510765808,0.29588759,3111.4,3111.1,0.1732]
[1763510766006,0.29588759,3111.3,3111.1,0.1732]
[1763510766195,0.29588759,3111.2,3111.1,0.1732]
[1763510766840,0.97906516,3111.2,3111.1,0.3505]
[1763510767131,0.29588759,3111.2,3111.1,0.5227]
[1763510767328,0.97906516,3111.2,3111.1,0.8722]
[1763510767543,0.29588759,3111.2,3111.1,0.8722]
[1763510767903,0.97906516,3111.2,3111.1,0.8722]
[1763510768110,0.29588759,3111.2,3111.1,0.8722]
[1763510768310,0.97906516,3111.2,3111.1,0.5227]
[1763510768709,0.97906516,3111.2,3111.1,0.8722]
[1763510769350,0.97906516,3111.2,3111.1,0.5227]
[1763510769712,1.16262052,3111.2,3111.1,0.5227]
[1763510771348,0.97906516,3111.2,3111.1,0.5227]
[1763510773117,0.97906516,3111.2,3111.1,0.001]
[1763510773118,2.2915536,3111.2,3111.1,0.001]
[1763510773450,12.33398516,3111.2,3111.0,0.001]
[1763510773623,3.14666368,3111.1,3111.0,0.001]
[1763510773813,1.91326516,3111.1,3111.0,0.001]
[1763510774675,1.91326516,3111.1,3110.8,0.001]
[1763510774676,14.8868578,3111.1,3110.8,0.001]
[1763510774948,0.5301,3110.9,3110.8,0.001]
[1763510775156,5.78869516,3110.9,3110.8,0.001]
[1763510775341,6.48654394,3110.9,3110.8,0.001]
[1763510775713,7.57854394,3110.9,3110.8,0.001]
[1763510776365,0.97906516,3110.9,3110.8,0.3505]
[1763510776662,0.97906516,3110.9,3110.8,0.001]
[1763510777156,2.12652798,3110.9,3110.8,0.001]
[1763510777520,0.97906516,3110.9,3110.8,0.001]
[1763510777847,1.24909469,3110.9,3110.8,0.001]
[1763510778014,1.70509469,3110.9,3110.8,0.001]
[1763510778543,2.18329469,3110.9,3110.8,0.001]
[1763510779109,7.40153569,3110.9,3110.8,0.001]
[1763510779310,11.39759786,3110.9,3110.8,0.001]
[1763510779926,12.3045905,3110.9,3110.8,0.001]
[1763510780256,15.28151133,3110.9,3110.8,0.001]
[1763510780752,1.84119264,3110.8,3109.5,0.1773]
[1763510780977,0.86016741,3110.1,3108.2,0.1773]
[1763510781256,1.14688988,3110.4,3108.0,0.8118551]
[1763510781257,2.33273257,3110.0,3108.3,0.3495]
[1763510781441,2.07250583,3109.9,3108.3,0.3495]
[1763510781644,0.97906516,3109.8,3108.3,0.3495]
[1763510781834,1.28424067,3109.9,3108.3,0.3495]
[1763510781835,0.97906516,3109.7,3108.3,0.3495]
[1763510782020,0.97906516,3109.6,3108.3,0.3495]
[1763510782220,0.29588759,3109.5,3108.3,0.3495]
[1763510782461,0.29588759,3109.4,3108.3,0.3495]
[1763510782669,0.17777407,3109.8,3108.3,0.3495]
[1763510782670,0.68317757,3109.6,3108.3,0.3495]
[1763510782857,0.29831373,3109.5,3109.3,0.3495]
[1763510783056,0.29831373,3109.4,3109.3,0.3495]
[1763510783382,0.29831373,3109.4,3108.0,0.1722]
[1763510783383,0.68317757,3109.8,3109.4,0.3495]
[1763510783531,0.68317757,3110.0,3109.7,0.3495]
[1763510783733,0.86016741,3110.7,3109.4,0.3495]
[1763510783965,0.98562949,3110.6,3109.4,0.3495]
[1763510784281,0.29830588,3110.5,3109.4,0.3495]
[1763510784460,0.29830588,3110.4,3109.5,0.405504]
[1763510784645,0.86016741,3111.2,3110.3,0.3495]
[1763510784963,0.86016741,3111.2,3109.6,0.38165847]
[1763510784964,0.9856302,3111.1,3110.6,0.3495]
[1763510785263,0.29830926,3111.0,3110.6,0.3495]
[1763510785463,0.29830926,3110.9,3110.6,0.3495]
[1763510785678,0.9856302,3111.1,3110.6,0.3495]
[1763510785836,0.29830926,3111.0,3110.6,0.3495]
[1763510786161,0.29830926,3111.1,3110.3,0.3495]
[1763510786390,0.29830926,3111.0,3110.3,0.3495]
[1763510786580,0.29830926,3111.2,3110.3,0.3495]
[1763510786774,0.29830926,3111.1,3110.3,0.3495]
[1763510786975,0.29830926,3111.0,3110.3,0.3495]
[1763510787186,0.5024081,3111.2,3110.3,0.3495]
[1763510787399,0.29830926,3111.1,3110.3,0.3495]
[1763510788202,0.20409884,3111.2,3110.3,0.3495]
[1763510788360,0.5024081,3111.2,3110.3,0.3495]
[1763510788900,0.5024081,3111.2,3109.3,0.405504]
[1763510789097,0.29830926,3111.3,3110.2,0.3495]
[1763510789261,0.29830926,3111.2,3110.2,0.3495]
[1763510789701,0.29830926,3111.3,3111.1,0.5217]
[1763510790047,0.29830926,3111.4,3111.1,0.5217]
[1763510790292,0.002,3111.5,3111.2,0.3495]
[1763510790458,0.002,3111.5,3111.1,0.1722]
[1763510790653,0.002,3111.5,3110.5,0.3495]
[1763510790654,0.93345023,3111.5,3110.2,0.3495]
[1763510790859,0.29830926,3111.4,3110.2,0.3495]
[1763510791097,0.79180926,3111.4,3110.2,0.3495]
[1763510791314,4.94096949,3111.3,3110.2,0.3495]
[1763510791463,5.39280389,3111.2,3110.2,0.3495]
[1763510791656,0.9856302,3111.1,3109.7,0.3495]
[1763510791890,0.29830926,3111.0,3109.3,0.3495]
[1763510792104,0.29830926,3110.9,3109.3,0.3495]
[1763510792269,0.87251433,3110.8,3109.3,0.3495]
[1763510792465,0.29830926,3110.7,3109.3,0.3495]
[1763510792678,1.4791302,3110.7,3109.3,0.3495]
[1763510792906,0.29830926,3110.6,3109.3,0.3495]
[1763510793102,0.79180926,3110.7,3109.3,0.3495]
[1763510793293,0.29830926,3110.6,3109.3,0.3495]
[1763510793705,0.4935,3110.7,3109.3,0.3495]
[1763510796657,0.34369597,3110.7,3109.3,0.38166157]
[1763510796860,0.64200523,3110.7,3109.3,0.38166157]
[1763510797091,0.64200523,3110.7,3109.4,0.405504]
[1763510797288,0.64200523,3110.7,3109.5,0.3495]
[1763510798283,0.64400523,3110.7,3109.5,0.3495]
[1763510798963,0.002,3110.7,3110.6,0.3495]
[1763510799393,0.002,3110.7,3110.2,0.3495]
[1763510800683,0.002,3110.7,3109.8,0.3495]
[1763510800884,0.002,3110.7,3110.6,0.3495]
[1763510801291,0.002,3110.7,3110.6,0.699]
[1763510801688,0.002,3110.7,3110.0,0.3495]
[1763510802072,0.002,3110.7,3110.6,0.3495]
[1763510803005,0.002,3110.7,3110.0,0.3495]
[1763510803370,0.002,3110.7,3110.6,0.3495]
[1763510804184,0.002,3110.7,3109.5,0.29860691]
[1763510804471,0.002,3110.7,3110.0,0.3495]
[1763510807474,0.002,3110.7,3109.2,0.88141091]
[1763510807475,0.4908,3110.7,3109.6,0.405504]
[1763510808105,0.4908,3110.7,3109.6,0.755004]
[1763510808489,0.4908,3110.7,3109.7,0.3495]
[1763510809176,0.002,3110.7,3109.7,0.3495]
[1763510812300,0.002,3110.7,3110.6,0.699]